Workbook

Sheet Pro_forma_1
B2: HW5 Lemonade Stand
B3: Instructions: | C3: Complete the following financial statements using the assumptions listed below to forecast year 1 through 5. Use cash as the plug to balance the balance sheet. Make sure you go to Excel options (Alt T O) and turn on enable iterative calculations under formulas. You will also need to calculate free cash flow to the firm (unlevered free cash flow)
B5: Sales growth | C5: 0.1
B6: Current assets/Sales | C6: 0.15
B7: Current liabilities/Sales | C7: 0.08
B8: Net fixed assets/Sales | C8: 0.77
B9: Costs of goods sold/Sales | C9: 0.5
B10: Depreciation rate | C10: 0.1
B11: Interest rate on debt | C11: 0.1
B12: Interest paid on cash and marketable securities | C12: 0.08
B13: Tax rate | C13: 0.4
B14: Dividend payout ratio | C14: 0.4
B15: Circuit Breaker | C15: OFF
B17: Year | C17: 0 | D17: 1 | E17: 2 | F17: 3 | G17: 4 | H17: 5
B18: Income statement
B19: Sales | C19: 1000 | D19: =C19*(1+$C$5) -> 1100 | E19: =D19*(1+$C$5) -> 1210 | F19: 1331 | G19: 1464.1 | H19: 1610.51
B20: Costs of goods sold | C20: -500 | D20: =-D19*$C$9 -> -550 | E20: =-E19*$C$9 -> -605 | F20: -665.5 | G20: -732.05 | H20: -805.255
B21: Interest payments on debt | C21: -32 | D21: =-$C$11*AVERAGE(C40:D40) -> -32 | E21: =-$C$11*AVERAGE(D40:E40) -> -32 | F21: -32 | G21: -32 | H21: -32
B22: Interest earned on cash and marketable securities | C22: 6.4 | D22: =$C$12*AVERAGE(C31:D31) -> 8.947795625 | E22: =$C$12*AVERAGE(D31:E31) -> 14.27670286 | F22: 20.08091337 | G22: 26.37673133 | H22: 33.17806918
B23: Depreciation | C23: -100 | D23: =-$C$10*AVERAGE(C34:D34) -> -116.6842105 | E23: =-$C$10*AVERAGE(D34:E34) -> -137.4772853 | F23: -161.3101574 | G23: -188.5879107 | H23: -219.7667796
B24: Profit before tax | C24: 374.4 | D24: =SUM(D19:D23) -> 410.2635851 | E24: =SUM(E19:E23) -> 449.7994175 | F24: 492.2707559 | G24: 537.8388206 | H24: 586.6662896
B25: Taxes | C25: -149.76 | D25: =-D24*$C$13 -> -164.105434 | E25: =-E24*$C$13 -> -179.919767 | F25: -196.9083024 | G25: -215.1355282 | H25: -234.6665158
B26: Profit after tax | C26: 224.64 | D26: =D25+D24 -> 246.1581511 | E26: =E25+E24 -> 269.8796505 | F26: 295.3624536 | G26: 322.7032924 | H26: 351.9997738
B27: Dividends | C27: -89.856 | D27: =-D26*$C$14 -> -98.46326042 | E27: =-E26*$C$14 -> -107.9518602 | F27: -118.1449814 | G27: -129.0813169 | H27: -140.7999095
B28: Retained earnings | C28: 134.784 | D28: =D26+D27 -> 147.6948906 | E28: =E26+E27 -> 161.9277903 | F28: 177.2174721 | G28: 193.6219754 | H28: 211.1998643
B30: Balance sheet
B31: Cash and marketable securities | C31: 80 | D31: =IF($C$15="OFF",D43-D36-D32,0) -> 143.6948906 | E31: =IF($C$15="OFF",E43-E36-E32,0) -> 213.222681 | F31: 288.8001533 | G31: 370.6181299 | H31: 458.8335996 | I31: ***Use Cash as the plug, i.e. it is used to make the balance sheet balance
B32: Current assets | C32: 150 | D32: =D19*$C$6 -> 165 | E32: =E19*$C$6 -> 181.5 | F32: 199.65 | G32: 219.615 | H32: 241.5765
B33: Fixed assets
B34: At cost | C34: 1070 | D34: =IF($C$15="OFF",D36-D35,0) -> 1263.684211 | E34: =IF($C$15="OFF",E36-E35,0) -> 1485.861496 | F34: 1740.341653 | G34: 2031.416561 | H34: 2363.91903
B35: Depreciation | C35: -300 | D35: =C35+D23 -> -416.6842105 | E35: =D35+E23 -> -554.1614958 | F35: -715.4716533 | G35: -904.059564 | H35: -1123.826344
B36: Net fixed assets | C36: 770 | D36: =D19*$C$8 -> 847 | E36: =E19*$C$8 -> 931.7 | F36: 1024.87 | G36: 1127.357 | H36: 1240.0927
B37: Total assets | C37: 1000 | D37: =D36+D32+D31 -> 1155.694891 | E37: =E36+E32+E31 -> 1326.422681 | F37: 1513.320153 | G37: 1717.59013 | H37: 1940.5028
B39: Current liabilities | C39: 80 | D39: =D19*$C$7 -> 88 | E39: =E19*$C$7 -> 96.8 | F39: 106.48 | G39: 117.128 | H39: 128.8408
B40: Debt | C40: 320 | D40: =C40 -> 320 | E40: =D40 -> 320 | F40: 320 | G40: 320 | H40: 320
B41: Stock | C41: 450 | D41: =C41 -> 450 | E41: =D41 -> 450 | F41: 450 | G41: 450 | H41: 450
B42: Accumulated retained earnings | C42: 150 | D42: =C42+D28 -> 297.6948906 | E42: =D42+E28 -> 459.622681 | F42: 636.8401531 | G42: 830.4621285 | H42: 1041.661993
B43: Total liabilities and equity | C43: 1000 | D43: =SUM(D39:D42) -> 1155.694891 | E43: =SUM(E39:E42) -> 1326.422681 | F43: 1513.320153 | G43: 1717.590129 | H43: 1940.502793
B46: Year | C46: 0 | D46: 1 | E46: 2 | F46: 3 | G46: 4 | H46: 5
B47: Free cash flow calculation
B48: Profit after tax | D48: =D26 -> 246.1581511 | E48: =E26 -> 269.8796505 | F48: 295.3624536 | G48: 322.7032924 | H48: 351.9997738
B49: Add back depreciation | D49: =-D23 -> 116.6842105 | E49: =-E23 -> 137.4772853 | F49: 161.3101574 | G49: 188.5879107 | H49: 219.7667796
B50: Subtract increase in current assets | D50: =-(D32-C32) -> -15 | E50: =-(E32-D32) -> -16.5 | F50: -18.15 | G50: -19.965 | H50: -21.9615
B51: Add back increase in current liabilities | D51: =(D39-C39) -> 8 | E51: =(E39-D39) -> 8.8 | F51: 9.68 | G51: 10.648 | H51: 11.7128
B52: Subtract increase in fixed assets at cost | D52: =-(D34-C34) -> -193.6842105 | E52: =-(E34-D34) -> -222.1772853 | F52: -254.480157 | G52: -291.0749084 | H52: -332.5024689
B53: Add back after-tax interest on debt | D53: =-D21*(1-$C$13) -> 19.2 | E53: =-E21*(1-$C$13) -> 19.2 | F53: 19.2 | G53: 19.2 | H53: 19.2
B54: Subtract after-tax interest on cash and mkt. securities | D54: =-D22*(1-$C$13) -> -5.368677375 | E54: =-E22*(1-$C$13) -> -8.566021719 | F54: -12.04854802 | G54: -15.8260388 | H54: -19.90684151
B55: Free cash flow | D55: =SUM(D48:D54) -> 175.9894737 | E55: =SUM(E48:E54) -> 188.1136289 | F55: 200.8739059 | G55: 214.2732559 | H55: 228.308543
B56: Use our EBIT formula | D56: =(D19+D20+D23)*(1-$C$13)+D49+SUM(D50:D52) -> 175.9894737 | E56: =(E19+E20+E23)*(1-$C$13)+E49+SUM(E50:E52) -> 188.1136289 | F56: 200.8739059 | G56: 214.2732559 | H56: 228.308543
B57: CONSOLIDATED STATEMENT OF CASH FLOWS: RECONCILING THE CASH BALANCES
B58: Cash flow from operating activities
B59: Profit after tax | D59: =D26 -> 246.1581511 | E59: =E26 -> 269.8796505 | F59: 295.3624536 | G59: 322.7032924 | H59: 351.9997738
B60: Add back depreciation | D60: =-D23 -> 116.6842105 | E60: =-E23 -> 137.4772853 | F60: 161.3101574 | G60: 188.5879107 | H60: 219.7667796
B61: Adjust for changes in net working capital:
B62: Subtract increase in current assets | D62: =-(D32-C32) -> -15 | E62: =-(E32-D32) -> -16.5 | F62: -18.15 | G62: -19.965 | H62: -21.9615
B63: Add back increase in current liabilities | D63: =(D39-C39) -> 8 | E63: =(E39-D39) -> 8.8 | F63: 9.68 | G63: 10.648 | H63: 11.7128
B64: Net cash from operating activities | D64: =SUM(D59:D63) -> 355.8423616 | E64: =SUM(E59:E63) -> 399.6569358 | F64: 448.202611 | G64: 501.9742031 | H64: 561.5178533
B66: Cash flow from investing activities
B67: Aquisitions of fixed assets--capital expenditures | D67: =-(D34-C34) -> -193.6842105 | E67: =-(E34-D34) -> -222.1772853 | F67: -254.480157 | G67: -291.0749084 | H67: -332.5024689
B68: Purchases of investment securities | D68: 0 | E68: 0 | F68: 0 | G68: 0 | H68: 0
B69: Proceeds from sales of investment securities | D69: 0 | E69: 0 | F69: 0 | G69: 0 | H69: 0
B70: Net cash used in investing activities | D70: =SUM(D67:D69) -> -193.6842105 | E70: =SUM(E67:E69) -> -222.1772853 | F70: -254.480157 | G70: -291.0749084 | H70: -332.5024689
B72: Cash flow from financing activities
B73: Net proceeds from borrowing activities | D73: =D40-C40 -> 0 | E73: =E40-D40 -> 0 | F73: 0 | G73: 0 | H73: 0
B74: Net proceeds from stock issues, repurchases | D74: =D41-C41 -> 0 | E74: =E41-D41 -> 0 | F74: 0 | G74: 0 | H74: 0
B75: Dividends paid | D75: =D27 -> -98.46326042 | E75: =E27 -> -107.9518602 | F75: -118.1449814 | G75: -129.0813169 | H75: -140.7999095
B76: Net cash from financing activities | D76: =SUM(D73:D75) -> -98.46326042 | E76: =SUM(E73:E75) -> -107.9518602 | F76: -118.1449814 | G76: -129.0813169 | H76: -140.7999095
B78: Net increase in cash and cash equivalents | D78: =D76+D70+D64 -> 63.69489064 | E78: =E76+E70+E64 -> 69.52779036 | F78: 75.57747252 | G78: 81.81797775 | H78: 88.21547497
B79: Check: changes in cash and mkt. securities | D79: =D31-C31 -> 63.69489064 | E79: =E31-D31 -> 69.52779034 | F79: 75.57747233 | G79: 81.8179766 | H79: 88.21546967
